Cogmind - Beta 14 @@@ ROGUE MODE // 2024.09.04 @ 02:56:35 Player: Beef Result: Destroyed by L-31 Rogue with Katana Performance ------------- Evolutions (1) 500 Regions Visited (3) 600 Robots Destroyed (56) 280 Value Destroyed (1295) 1295 Prototype IDs (3) 60 Alien Tech Used (0) 0 Bonus (110) 110 TOTAL SCORE: 2845 Bonus ------- High Alert Combat Kills 110 Cogmind --------- Core Integrity 0/400 Matter 281/300 Energy 250/250 System Corruption 4% Temperature Cool (0) Movement Walking (190) Ox1 Location -9/Mines Parts ------- > --- POWER (1) -------- Ion Engine > --- PROPULSION (3) --- Aluminum Leg Aluminum Leg Aluminum Leg > --- UTILITY (3) ------ Heat Sink Large Storage Unit Signal Interpreter > --- WEAPON (2) ------- Improved Medium Laser Improved Medium Laser > --- INVENTORY (15) --- Aluminum Leg Heat Sink Structural Scanner Seismic Detector Hacking Suite Improved Medium Laser Improved Medium Laser Improved Medium Laser Grenade Launcher Hammer Peak State ------------ > --- POWER ------------ Improved Ion Engine > --- PROPULSION ------- Aluminum Leg Aluminum Leg Aluminum Leg > --- UTILITY ---------- Large Storage Unit Sensor Array Signal Interpreter > --- WEAPON ----------- Improved Medium Laser Improved Medium Laser > --- INVENTORY -------- Light Ion Engine Aluminum Leg Aluminum Leg Structural Scanner Seismic Detector Hacking Suite Improved Medium Laser Improved Medium Laser Improved Medium Laser Improved Medium Laser Grenade Launcher [Rating: 16] Favorites ----------- Power Light Ion Engine Engine Light Ion Engine Propulsion Aluminum Leg Treads Light Treads Leg Aluminum Leg Utility Large Storage Unit Device Heat Sink Storage Large Storage Unit Processor Signal Interpreter Weapon Assault Rifle Energy Gun Improved Medium Laser Ballistic Gun Assault Rifle Launcher Grenade Launcher Build | -11 -10 -9 -9 ------- Run | Yrd Mat Mat Min Slots Evolved 2 | . . 2 . Power . | . . . . Propulsion 1 | . . 1 . Utility 1 | . . 1 . Weapon . | . . . . Parts Attached 46 | 8 11 27 . Power 7 | 1 2 4 . Engine 7 | 1 2 4 . Core . | . . . . Reactor . | . . . . Propulsion 17 | 2 2 13 . Treads 2 | 2 . . . Leg 15 | . 2 13 . Wheel . | . . . . Hover . | . . . . Flight . | . . . . Utility 11 | 3 3 5 . Device 7 | 2 1 4 . Storage 3 | 1 2 . . Processor 1 | . . 1 . Hackware . | . . . . Protection . | . . . . Artifact . | . . . . Weapon 11 | 2 4 5 . Energy Gun 3 | . . 3 . Energy Cannon . | . . . . Ballistic Gun 6 | 2 2 2 . Ballistic Cannon . | . . . . Launcher 2 | . 2 . . Special Weapon . | . . . . Impact Weapon . | . . . . Slashing Weapon . | . . . . Piercing Weapon . | . . . . Special Melee Weapon . | . . . . Unidentified Prototypes 1 | . . 1 . Parts Lost 15 | . 4 11 . Power 2 | . 1 1 . Propulsion 8 | . 2 6 . Utility 3 | . 1 2 . Weapon 2 | . . 2 . Highest Loss Streak 5 | . 4 5 . To Critical Strikes . | . . . . Average Slot Usage (%) 94 | . 98 91 . Engine 12 | . 13 11 . Treads 9 | . 24 . . Leg 21 | . 3 32 . Device 10 | . 13 9 . Storage 12 | . 14 11 . Processor 3 | . . 5 . Energy Gun 8 | . . 14 . Ballistic Gun 15 | . 27 7 . Peak Build Rating 16 | 9 9 16 14 Average Rating 10 | 6 8 12 14 On Entrance 7 | . 9 7 14 Naked Turns . | . . . . Heaviest Build 34 | 13 29 34 32 Greatest Support 40 | 40 40 30 30 Greatest Overweight (x) 1 | . 1 1 1 Average Overweight (x) . | . . . 1 Largest Inventory Capacity 15 | 8 15 15 15 Average Capacity 14 | 7 14 15 15 Most Carried 12 | 5 9 12 10 Average Carried 7 | 3 7 8 10 Final Capacity 15 | 8 15 15 15 Final Carried 10 | 5 7 10 10 Class Distribution -------------------- 62% | Mutant 37% | Scavenger-Mutant Dominant Class ---------------- Mutant | -10/Materials Scavenger-Mutant | -9/Materials Scavenger-Mutant | -9/Mines Resources | -11 -10 -9 -9 ----------- Run | Yrd Mat Mat Min Matter Collected 1324 | 242 553 529 . Remotely . | . . . . Salvage Created 1837 | 81 541 1215 . Parts 110 | 8 32 70 . Haulers Intercepted 2 | . . 2 . Recyclers Shooed 3 | . 3 . . Parts Field Recycled . | . . . . Retrieved Matter . | . . . . Parts Self-Destructed . | . . . . Prevented . | . . . . Kills | -11 -10 -9 -9 ------- Run | Yrd Mat Mat Min Combat Hostiles Destroyed 40 | . 12 28 . Guns 36 | . 8 28 . AOE 4 | . 4 . . Classes Destroyed 11 | 1 5 5 . Worker 3 | . 1 2 . Builder 1 | . . 1 . Tunneler 4 | 4 . . . Hauler 2 | . . 2 . Recycler 2 | . 2 . . Operator 2 | . 1 1 . Watcher 2 | . . 2 . Swarmer 10 | . 3 7 . Grunt 25 | . 9 16 . Brawler 1 | . . 1 . Sentry 4 | . . 4 . Best Kill Streak 6 | 2 4 6 . Combat Bots Only 6 | . 3 6 . Max Kills in Single Turn 2 | 1 2 2 . Gunslinging 1 | . . 1 . Exploded 2 | . 2 . . Melee . | . . . . Uniques/NPCs Destroyed . | . . . . Combat | -11 -10 -9 -9 -------- Run | Yrd Mat Mat Min Hostile Shots Fired 337 | . 99 236 2 Missed 105 | . 30 75 . Damage Taken 2671 | . 755 1872 44 Core 516 | . 104 379 33 Absorbed by Shields . | . . . . Regen/Repaired (Parts) 19 | . . 19 . Core Remaining (%) 79 | 100 58 . . Volleys Fired 182 | 7 60 115 . Largest 2 | 2 2 2 . Hottest 112 | 40 50 112 . Shots Fired 355 | 14 120 221 . Gun 351 | 14 116 221 . Cannon . | . . . . Launcher 4 | . 4 . . Special . | . . . . Kinetic 217 | 14 116 87 . Thermal 134 | . . 134 . Explosive 4 | . 4 . . Electromagnetic . | . . . . Robot Hit Streak 11 | 3 7 11 . Robot Miss Streak 7 | 2 5 7 . Penetration Max . | . . . . Secondary Targets 7 | . 1 6 . Max Gunslinging Chain 1 | . 1 1 . Shots Hit Robots 201 | 7 62 132 . Core Hits 80 | 4 25 51 . Critical Kills . | . . . . Critical Parts Destroyed . | . . . . Critical Strikes 8 | . . 8 . Burn 8 | . . 8 . Melee Attacks . | . . . . Impact . | . . . . Slashing . | . . . . Piercing . | . . . . Sneak Attacks . | . . . . Combat Hostiles . | . . . . Follow-up Attacks . | . . . . Damage Inflicted 3255 | 61 1068 2126 . Guns 2992 | 61 817 2114 . Cannons . | . . . . Explosions 244 | . 244 . . Melee . | . . . . Ramming 19 | . 7 12 . Kinetic 1582 | 61 817 704 . Thermal 1410 | . . 1410 . Explosive 244 | . 244 . . Electromagnetic . | . . . . Impact . | . . . . Slashing . | . . . . Piercing . | . . . . Highest Corruption 4 | . . 4 4 Average Corruption 3 | . . 3 4 Corruption Purged . | . . . . Corruption Blocked . | . . . . Effects 25 | . . 25 . Message Errors 7 | . . 7 . Matter Fused 9 | . . 9 . Heat Flow Errors 1 | . . 1 . Energy Discharges 3 | . . 3 . Data Loss (minor) 2 | . . 2 . Data Loss (major) 1 | . . 1 . Weapon Failures 2 | . . 2 . Overload Shots . | . . . . Overflow Damage 28 | . 28 . . Projectiles . | . . . . Explosions 28 | . 28 . . Melee . | . . . . Knockbacks . | . . . . Impact . | . . . . Kinetic . | . . . . Secondary . | . . . . Self-Inflicted Damage . | . . . . Shots . | . . . . Rammed 1 | . 1 . . Targets Rammed 5 | . 2 3 . Kicked 4 | . 1 3 . Crushed . | . . . . Highest Temperature 413 | . 9 413 . Average Temperature 97 | . 4 100 . Received Heat Transfer 1134 | . 318 810 6 Effects 6 | . . 6 . Shutdowns 1 | . . 1 . Energy Bleed 1 | . . 1 . Interference 1 | . . 1 . Short Circuit 1 | . . 1 . Damage (minor) 2 | . . 2 . Siege Activations . | . . . . Robots Corrupted . | . . . . Combat Hostiles . | . . . . Parts Fried . | . . . . Impact Corruptions . | . . . . Robots Melted . | . . . . Combat Hostiles . | . . . . Parts Melted 7 | . . 7 . Heat Transferred 3601 | . . 3601 . Parts Sabotaged . | . . . . Parts Stolen . | . . . . Parts Stripped . | . . . . Power Chain Reactions . | . . . . Alert | -11 -10 -9 -9 ------- Run | Yrd Mat Mat Min Peak Influence 652 | 20 355 652 218 Initial 218 | . 13 51 218 Average 265 | 6 174 358 218 Maximum Alert Level 2 | . 1 2 1 Low Security (%) 44 | 100 68 22 . Level 1 28 | . 31 30 100 Level 2 26 | . . 47 . Level 3 . | . . . . Level 4 . | . . . . Level 5 . | . . . . High Security . | . . . . Max Security . | . . . . Squads Dispatched 10 | . 4 6 . Investigation 5 | . 3 2 . Extermination . | . . . . Reinforcement 3 | . 1 2 . Assault 2 | . . 2 . Garrison . | . . . . Intercept . | . . . . Searches Triggered . | . . . . Construction Impeded . | . . . . Haulers Reinforced . | . . . . Active Scanning Responses . | . . . . Cargo Convoy Interrupts . | . . . . Stealth | -11 -10 -9 -9 --------- Run | Yrd Mat Mat Min Distress Signals 6 | . 2 4 . Communications Jammed . | . . . . Distress Signals . | . . . . Times Spotted 81 | . 24 55 2 Peak Tracking Total 8 | . 4 8 . Tactical Retreats 11 | . 1 10 . Traps | -11 -10 -9 -9 ------- Run | Yrd Mat Mat Min Traps Triggered 3 | . 1 2 . Indirectly . | . . . . Trap Hack Attempts . | . . . . Triggered . | . . . . Disarmed . | . . . . Reprogrammed . | . . . . Reused . | . . . . Traps Extracted . | . . . . Installed . | . . . . Triggered . | . . . . Machines | -11 -10 -9 -9 ---------- Run | Yrd Mat Mat Min Machines Disabled . | . . . . Max in Single Turn . | . . . . Machines Repaired . | . . . . Machines Dismantled . | . . . . Machines Sabotaged . | . . . . Overloaded Fab Kills . | . . . . Hacking | -11 -10 -9 -9 --------- Run | Yrd Mat Mat Min Machines Accessed 7 | . 4 3 . Terminals 4 | . 2 2 . Fabricators . | . . . . Repair Stations 1 | . . 1 . Recycling Units 2 | . 2 . . Scanalyzers . | . . . . Garrison Access . | . . . . Total Hacks 19 | . 10 9 . Successful 9 | . 5 4 . Failed 10 | . 5 5 . Catastrophic 5 | . 2 3 . Database Lockouts . | . . . . Manual 13 | . 10 3 . Terminals 14 | . 7 7 . Fabricators . | . . . . Repair Stations 2 | . . 2 . Recycling Units 3 | . 3 . . Scanalyzers . | . . . . Garrison Access . | . . . . Terminal Hacks 2 | . 1 1 . Prototype ID Bank 1 | . . 1 . Branch Access Points 1 | . 1 . . Fabricator Hacks . | . . . . Repair Station Hacks 2 | . . 2 . Scan Component 1 | . . 1 . Repair 1 | . . 1 . Recycling Unit Hacks . | . . . . Scanalyzer . | . . . . Garrison Access Hacks . | . . . . Unauthorized Hacks 5 | . 4 1 . Terminals 3 | . 2 1 . Botnet 3 | . 2 1 . Fabricators . | . . . . Repair Stations . | . . . . Recycling Units 2 | . 2 . . Tunnel 2 | . 2 . . Scanalyzers . | . . . . Garrison Access . | . . . . Data Cores Recovered . | . . . . Used . | . . . . Hacking Detections 4 | . 2 2 . Full Trace Events 3 | . 1 2 . Feedback Events . | . . . . Feedback Blocked . | . . . . Robot Schematics Acquired . | . . . . Robots Built . | . . . . Authchips . | . . . . Time . | . . . . Total Robot Build Rating . | . . . . Part Schematics Acquired . | . . . . Parts Built . | . . . . Authchips . | . . . . Time . | . . . . Total Part Build Rating . | . . . . Parts Repaired 1 | . . 1 . Time 26 | . . 26 . Parts Recycled . | . . . . Recycled Matter . | . . . . Retrieved Matter . | . . . . Retrieved Components . | . . . . Parts Scanalyzed . | . . . . Part Schematics Acquired . | . . . . Parts Damaged . | . . . . Bothacking | -11 -10 -9 -9 ------------ Run | Yrd Mat Mat Min Used RIF Installer . | . . . . Robots Hacked . | . . . . Non-combat . | . . . . Combat . | . . . . Robot Hacks Applied . | . . . . Relay Couplers Released . | . . . . Fabnet Peak Effective % . | . . . . Robots Rewired . | . . . . Allies Hacked . | . . . . Hacks Repelled . | . . . . Allies | -11 -10 -9 -9 -------- Run | Yrd Mat Mat Min Total Allies . | . . . . Largest Group . | . . . . Highest-Rated Group . | . . . . Highest-Rated Ally . | . . . . Total Orders . | . . . . Ally Attacks . | . . . . Total Damage . | . . . . Kills . | . . . . Allies Corrupted . | . . . . Allies Melted . | . . . . Intel | -11 -10 -9 -9 ------- Run | Yrd Mat Mat Min Robot Analysis Total . | . . . . Derelict Logs Recovered . | . . . . Drone Launches . | . . . . Drone Recoveries . | . . . . Exploration | -11 -10 -9 -9 ------------- Run | Yrd Mat Mat Min Turns Passed 2336 | 188 825 1321 2 Spaces Moved 999 | 98 378 522 1 Core 5 | 5 . . . Treads 424 | 93 331 . . Legs 570 | . 47 522 1 Wheels . | . . . . Hover . | . . . . Flight . | . . . . Fastest Speed 50 | 50 160 120 190 Average Speed 162 | 154 163 162 190 Slowest Speed 190 | 160 190 190 190 Overloaded Moves . | . . . . Propulsion Burnouts . | . . . . Robots Hopped . | . . . . Cave-ins Triggered . | . . . . Exploration Rate (%) 25 | 6 53 39 4 Regions Visited 3 Branch Regions 1 Pre-discovered Areas 2 | . 2 . . Known Exits Taken 1 | . . 1 . Unknown Exits Taken 2 | 1 1 . . Scrap Searched . | . . . . Spaces Dug . | . . . . Terrain Destroyed 31 | . 31 . . Melee . | . . . . Projectile . | . . . . AOE 31 | . 31 . . Terrain Rammed . | . . . . Walls Destroyed . | . . . . Machines Disabled . | . . . . Actions | -11 -10 -9 -9 --------- Run | Yrd Mat Mat Min Total 1349 | 117 461 770 1 Wait 67 | . 3 64 . Move 996 | 97 377 521 1 Hop . | . . . . Pick Up 30 | 5 5 20 . Fast Attach 15 | 7 1 7 . Attach 13 | . 3 10 . Detach 4 | . . 4 . Swap 18 | 1 7 10 . Drop 19 | . 3 16 . Fire 182 | 7 60 115 . Melee . | . . . . Ram . | . . . . Kick 4 | . 1 3 . Crush 1 | . 1 . . Escape Stasis . | . . . . Rewire . | . . . . Trap . | . . . . Miscellaneous . | . . . . Route ------- -11/Scrapyard -10/Materials (discovered 3 exits: *Mat / *Min x2) -9/Materials -9/Mines History --------- Turn | Location | Event 12 | -11/Scrapyard | Discovered new exit (range 16) 189 | -11/Scrapyard | Entered Materials 311 | -10/Materials | Build established: Mutant 430 | -10/Materials | Discovered new exit (range 9) 637 | -10/Materials | Discovered new exit (range 5) 756 | -10/Materials | Identified exit to Mines 941 | -10/Materials | Lost 4 parts (1p2n1u) 989 | -10/Materials | Derelicts attacked the area 1014 | -10/Materials | Entered another Materials area 1014 | -9/Materials | Evolved 2 slots: Propulsion x1, Utility x1 1344 | -9/Materials | Repaired Grenade Launcher 1814 | -9/Materials | First assault squad dispatched 1859 | -9/Materials | Build established: Scavenger-Mutant 1905 | -9/Materials | Core integrity fell below 50% 1954 | -9/Materials | Lost 5 parts (1p1n1u2w) 2132 | -9/Materials | Core integrity fell below 20% 2306 | -9/Materials | Discovered new exit (range 16) 2333 | -9/Materials | Identified exit to Mines 2335 | -9/Materials | Entered Mines 2337 | -9/Mines | Destroyed by L-31 Rogue with Katana Last Messages --------------- 02182_ Acquired Heat Sink. 02208_ Acquired Aluminum Leg. 02214_ ALERT: Significant disruption in Zone 7L, assault force dispatched. 02216_ I-25 Savior suffers critical hit (Burn). 02234_ C-30 ARC bursts open, deploying its payload. 02234_ G-47 Trooper unfolds itself. 02234_ G-34 Mercenary unfolds itself. 02234_ B-36 Bruiser unfolds itself. 02234_ G-34 Mercenary unfolds itself. 02234_ M-13 Machinist unfolds itself. 02234_ K-01 Serf collects debris. 02247_ Aluminum Leg destroyed. 02271_ System corrupted: Component data lost. 02302_ LR|MFW/1HZMQ/ULT6NJ4A DC6JV6T 02306_ EXIT=FOUND 02332_ System corrupted: Matter fused (-9). 02333_ EXIT=IDENTIFIED: MINES LOCATION=MINES GOAL=ESCAPE Something is scanning the area. Map ----- +----------------------------------------------------+ | | | | | | | | | | | | | ???????????????????????????????????????? | | ???????????????????????????????????????? | | ???????????????????????????????????????? | | ???????????????????????????????????????? | | ???????????????????????????????????????? | | ???????????????????????????????????????? | | ???????????????????????????????????????? | | ???????????????????????????????????????? | | ???????????????????????????????????????? | | ???????????????????????????????????????? | | ???????????????????????????????????????? | | ???????????????????????????????????????? | | ???????????????????????????????????????? | | ???????????????????????????????????????? | | ???????????????????????????????????????? | | ?????????????????###???????????????????? | | ???????????????## ##??????????????????? | | ???????????????# #??????????????????? | | ???????# ####### g#??????????????????? | | ???????# @ #??????????????????? | | ???????# l #??????????????????? | | ???????######### #?????????????????? | | ???????????????# #????????????????? | | ???????????????# #????????????????? | | ???????????????# ##????????????????? | | ???????????????##### #?????????????????? | | ???????????????????? #?????????????????? | | ????????????????????? ?????????????????? | | ????????????????????? ????????????????? | | ?????????????????????? ???????????????? | | ?????????????????????? ???????????????? | | ??????????????????????? ??????????????? | | ???????????????????????????????????????? | | ???????????????????????????????????????? | | ???????????????????????????????????????? | | ???????????????????????????????????????? | | ???????????????????????????????????????? | | ???????????????????????????????????????? | | ???????????????????????????????????????? | | ???????????????????????????????????????? | | ???????????????????????????????????????? | | ???????????????????????????????????????? | | ???????????????????????????????????????? | | ???????????????????????????????????????? | +----------------------------------------------------+ Best States ------------- Heat Dissipation 38 Energy Generation 12 Energy Capacity 265 Matter Stores 300 Matter Capacity 300 Sight Range 16 Robot Scan Range 14 Terrain Scan Range 16 Terrain Scan Density 10 Evasion (%) 55 Recoil Reduction 2 Item Schematics ----------------- None Robot Schematics ------------------ None Fabricated ------------ Nothing Alien Tech Used ----------------- None Achievements -------------- None Challenges ------------ None Game ------ Seed SubdwellerWeldingStripper Manual? 0 Play Time 00:12:01 Cumulative 118.0 hours Start 2024.09.04 @ 00:23:57 End 2024.09.04 @ 02:56:35 Sessions 3 Manual Loads 0 Difficulty Rogue Special Mode None Game No. 136 Rogue 136 Adventurer 0 Explorer 0 Win Type - Total 2 Types 2/0/0/0/0/0/0/0/0 Lore% 55 Gallery% 64 Achievement% 48 Wizard Run 0 Options --------- Layout 0 ASCII 0 Keyboard 1 Movement Numpad Keybinds 0 Fullscreen 2 Font 18/SmallcapsGlow Map View 76x50 Zoom Use 0% Tactical HUD 1 Map Filters NONE Filters NONE Steam 1 RUN: f74241ae-a784-4b09-9d79-ac75734fcaa4